bitfinex/quotes_ETHUSD_20251021
["timestamp","ask_amount","ask_price","bid_price","bid_amount"]
[1761076761717,5.120238,4009.8,4009.7,0.47]
[1761076761923,0.50688,4009.6,4009.1,2.96431051]
[1761076762218,3.186,4009.5,4009.2,0.81327105]
[1761076762585,3.186,4009.4,4009.3,2.96420098]
[1761076763003,3.186,4009.4,4009.3,0.47]
[1761076763203,3.186,4009.4,4009.2,0.34327105]
[1761076763204,3.186,4009.4,4009.0,0.2342]
[1761076763413,3.186,4009.4,4009.0,0.7042]
[1761076763715,3.186,4009.4,4009.2,2.49425243]
[1761076763926,0.50688,4009.8,4009.2,0.59270881]
[1761076764129,3.189,4009.7,4009.6,2.49395239]
[1761076764325,0.6657533,4010.8,4009.9,2.49378178]
[1761076764622,1.5552,4010.6,4009.9,2.49378178]
[1761076764937,0.50688,4010.4,4010.0,0.4421]
[1761076765090,3.19,4010.3,4010.0,0.4421]
[1761076765291,0.6657533,4010.9,4010.1,0.4421]
[1761076765498,0.39105654,4011.3,4010.1,0.4421]
[1761076765499,3.802329,4010.7,4010.1,0.4421]
[1761076765699,1.5552,4010.5,4010.2,0.2374]
[1761076765906,1.5552,4010.3,4010.2,0.55472594]
[1761076766190,3.191,4010.3,4010.2,0.55472594]
[1761076766597,3.191,4010.3,4010.2,3.49046715]
[1761076767332,3.191,4010.3,4010.2,0.2374]
[1761076767626,1.5552,4010.2,4009.7,0.4421]
[1761076768333,1.5552,4010.2,4009.7,2.93604869]
[1761076768493,3.783325,4010.2,4010.1,0.2374]
[1761076768893,1.5552,4010.2,4009.8,0.4421]
[1761076769228,0.50688,4010.1,4009.0,0.6763]
[1761076769431,0.50688,4009.6,4009.0,0.2342]
[1761076769731,2.21438,4009.9,4009.0,0.6763]
[1761076769732,2.06208,4009.4,4009.0,0.6763]
[1761076770025,1.5552,4009.2,4009.0,0.6763]
[1761076770199,0.50688,4009.1,4009.0,0.2342]
[1761076770396,1.5552,4008.8,4008.6,5.0]
[1761076770617,16.653829,4008.7,4008.6,5.0]
[1761076770814,4.7482,4008.7,4008.6,5.0]
[1761076771226,4.7482,4008.7,4008.6,5.4421]
[1761076772062,4.7482,4008.7,4008.6,5.0]
[1761076772063,5.25508,4008.7,4008.6,5.0]
[1761076772232,37.7496543,4008.7,4008.6,5.0]
[1761076772558,38.74185795,4008.7,4008.6,5.0]
[1761076772762,36.43652902,4008.7,4008.6,5.0]
[1761076772959,39.63352902,4008.7,4008.6,5.0]
[1761076773468,0.50688,4007.2,4006.6,0.2374]
[1761076773693,1.5552,4006.8,4006.6,0.2374]
[1761076773830,1.5552,4007.0,4006.0,0.2374]
[1761076773831,1.5552,4006.6,4006.0,0.6795]
[1761076774178,3.198,4006.5,4006.0,3.1757086]
[1761076774343,3.198,4006.4,4006.1,1.03304856]
[1761076774544,0.50688,4007.1,4006.3,2.49605102]
[1761076774861,3.2,4007.0,4006.5,2.49589003]
[1761076775027,1.5552,4006.8,4006.6,2.49588045]
[1761076775225,1.5552,4006.6,4006.4,0.4421]
[1761076775430,4.7552,4006.5,4006.4,0.4421]
[1761076775662,4.7552,4006.5,4006.4,0.79501629]
[1761076775964,4.7552,4006.5,4006.4,0.4421]
[1761076776331,0.50688,4006.1,4005.9,0.2374]
[1761076776531,4.7552,4006.0,4005.9,0.2374]
[1761076776763,4.7562,4006.0,4005.9,0.2374]
[1761076777131,4.7562,4006.0,4005.9,0.6795]
[1761076778283,1.5552,4006.0,4005.9,3.17581793]
[1761076778437,4.7572,4006.0,4005.9,3.17581793]
[1761076778638,4.7572,4006.0,4005.9,0.6795]
[1761076779196,2.06208,4005.9,4005.3,0.4421]
[1761076779381,0.50688,4005.9,4005.6,0.2374]
[1761076779560,0.50688,4005.9,4005.6,0.6795]
[1761076779890,2.06208,4005.9,4005.6,0.6795]
[1761076780094,2.06208,4005.9,4005.7,0.4421]
[1761076780292,19.10103473,4007.0,4005.7,0.7596961]
[1761076780293,3.203,4005.8,4005.7,0.7596961]
[1761076780480,3.203,4005.8,4005.2,0.4421]
[1761076780662,3.203,4005.8,4004.6,0.4421]
[1761076780663,28.244378,4005.7,4004.6,0.4421]
[1761076780857,28.244378,4005.7,4004.4,0.2374]
[1761076780858,0.50688,4005.4,4004.4,0.2374]
[1761076781190,2.06208,4005.2,4004.5,2.52215907]
[1761076781389,2.06208,4005.0,4004.5,2.93928717]
[1761076781590,2.06208,4005.0,4004.6,0.4421]
[1761076781996,0.50688,4005.7,4004.6,0.4421]
[1761076782162,1.5552,4005.3,4004.7,0.02497065]
[1761076782362,0.50688,4005.2,4004.6,0.4421]
[1761076782563,0.50688,4005.4,4004.6,0.4421]
[1761076782765,0.50688,4005.2,4004.6,2.93921186]
[1761076782964,0.155,4005.9,4004.7,2.4970127]
[1761076783197,0.50688,4005.4,4004.7,0.4421]
[1761076783402,1.5552,4005.2,4004.8,0.4421]
[1761076783705,1.5552,4005.0,4004.8,0.4421]
[1761076783899,4.7692,4004.9,4004.8,2.93910359]
[1761076784088,4.7692,4004.9,4004.8,3.04062609]
[1761076784291,1.5552,4004.8,4004.4,2.73463958]
[1761076784470,1.5552,4004.8,4004.4,0.2374]
[1761076784670,1.5552,4004.8,4004.5,0.4421]
[1761076784999,0.50688,4004.7,4004.4,0.2374]
[1761076785201,0.50688,4004.7,4004.1,0.4421]
[1761076785387,0.66248,4004.7,4003.8,2.49762725]
[1761076785700,0.66248,4004.7,4003.7,0.6795]
[1761076785701,0.50688,4004.5,4003.7,0.6795]
[1761076785877,0.1556,4004.7,4003.4,0.2374]
[1761076785878,0.50688,4004.1,4003.4,0.2374]
[1761076786078,2.06208,4003.9,4003.4,0.2374]
[1761076786420,2.06208,4003.9,4002.9,0.2374]
[1761076786421,2.315229,4003.8,4003.1,2.49804824]
[1761076786572,0.50688,4003.7,4003.1,0.2374]
[1761076786790,3.217,4003.6,4003.2,0.4421]
[1761076787394,1.5552,4003.5,4003.2,0.2374]
[1761076787595,1.5552,4003.5,4003.3,0.4421]
[1761076788223,1.5552,4003.5,4003.2,0.2374]
[1761076788224,6.059838,4003.4,4003.2,0.2374]
[1761076788430,0.50688,4003.2,4002.7,0.2374]
[1761076788641,0.50688,4002.6,4001.5,0.2374]
[1761076788804,3.22,4003.1,4001.5,0.2374]
[1761076788805,1.5552,4002.4,4002.1,0.2374]
[1761076789135,3.23,4002.3,4002.1,0.2374]
[1761076789304,4.7852,4002.2,4002.1,0.2374]
[1761076789490,0.50688,4003.2,4002.1,0.51101988]
[1761076789695,0.50688,4003.0,4002.5,2.49843243]
[1761076789897,3.23,4003.1,4002.3,2.49856332]
[1761076789898,1.5552,4002.8,4002.3,2.49856332]
[1761076790138,0.50688,4003.1,4002.7,2.49831363]
[1761076790349,0.1562,4005.0,4002.3,0.02498563]
[1761076790350,3.232,4003.0,4002.3,0.02498563]
[1761076790637,3.232,4002.9,4002.8,2.49825122]
[1761076790938,4.7872,4002.9,4002.8,2.94035122]
[1761076791291,1.5552,4002.8,4002.4,0.4421]
[1761076791496,3.232,4002.9,4002.4,0.4421]
[1761076791724,1.5552,4002.8,4002.6,2.49835516]
[1761076792092,1.5552,4002.8,4002.7,2.94041363]
[1761076792291,4.7872,4002.8,4002.7,2.94041363]
[1761076792492,4.7862,4002.8,4002.7,2.94041363]
[1761076793001,4.7862,4002.8,4002.7,0.4421]
[1761076793330,4.7862,4002.8,4002.1,0.2374]
[1761076793331,1.5552,4002.7,4002.1,0.2374]
[1761076793500,0.161,4003.9,4002.7,0.4421]
[1761076793694,0.161,4003.9,4002.9,2.49817606]
[1761076793695,0.50688,4003.5,4002.9,2.49817606]
[1761076793922,0.50688,4003.3,4002.9,2.49817606]
[1761076794254,2.181497,4003.8,4003.0,0.4531]
[1761076794542,0.50688,4003.6,4003.1,2.718464]
[1761076794705,1.5552,4003.4,4003.1,2.718464]
[1761076795036,4.7882,4003.3,4003.2,0.4531]
[1761076795242,1.5552,4003.3,4003.2,0.4531]
[1761076795404,1.5552,4003.2,4002.1,0.2374]
[1761076795604,3.233,4003.3,4003.1,0.2204]
[1761076795806,11.700505,4004.1,4003.1,0.2204]
[1761076796007,0.50688,4003.7,4003.1,0.6735]
[1761076796202,2.06208,4003.5,4002.1,0.2374]
[1761076796407,2.06208,4002.8,4002.1,0.2374]
[1761076796604,2.06208,4002.6,4002.2,2.97671022]
[1761076796909,3.237,4002.5,4002.2,2.95172397]
[1761076797106,3.237,4002.5,4002.3,0.4531]
[1761076797308,3.237,4002.5,4002.1,2.73607995]
[1761076797547,3.237,4002.5,4002.2,2.49860447]
[1761076797706,3.237,4002.5,4002.1,0.2374]
[1761076797914,3.237,4002.5,4002.2,2.95171179]
[1761076798444,2.49776677,4003.6,4002.2,2.95171179]
[1761076798445,3.236,4002.4,4002.3,2.95163316]
[1761076798621,0.50688,4003.4,4002.4,2.49850089]
[1761076798818,2.06208,4003.2,4002.6,2.49832298]
[1761076799018,2.06208,4003.2,4002.4,0.4531]
[1761076799019,2.06208,4003.2,4002.7,2.49829926]
[1761076799209,1.5552,4003.0,4002.9,2.49818881]
[1761076799413,7.791908,4004.4,4003.3,2.49788905]
[1761076799638,9.109758,4004.2,4003.3,2.49788905]
[1761076799943,0.099,4004.8,4003.4,0.6735]
[1761076800145,0.1562,4005.0,4003.5,0.4531]
[1761076800146,1.5552,4004.3,4003.5,0.4531]
[1761076800364,0.1562,4005.0,4003.6,0.02497752]
[1761076800512,4.257432,4004.8,4004.3,2.49726138]
[1761076800713,0.50688,4004.5,4003.7,2.95074731]
[1761076800942,0.50688,4004.3,4003.7,0.77271248]
[1761076801141,3.238,4004.4,4003.8,0.4531]
[1761076801345,3.238,4004.4,4004.3,0.2204]
[1761076801546,3.238,4004.4,4004.3,2.71771538]
[1761076801762,4.618974,4005.1,4004.3,0.2204]
[1761076802043,4.618974,4005.1,4003.4,0.6735]
[1761076802044,1.5552,4004.4,4003.4,0.6735]
[1761076802211,3.74788,4004.3,4003.4,0.6735]
[1761076802413,3.74788,4004.3,4003.5,0.4531]
[1761076802613,3.74788,4004.3,4003.5,2.95086571]
[1761076802832,3.74788,4004.3,4003.5,0.4531]
[1761076803548,3.74788,4004.3,4003.6,2.49774261]
[1761076803744,0.65717318,4004.9,4003.6,2.49774261]
[1761076803745,0.65717318,4004.9,4004.2,0.2204]
[1761076804049,0.65717318,4006.1,4004.2,0.2204]
[1761076804211,0.52797715,4006.0,4004.4,2.49725302]
[1761076804420,1.463,4006.0,4005.0,0.2204]
[1761076804641,0.0736,4006.5,4005.9,0.2204]
[1761076804836,0.0736,4006.5,4006.4,2.49600638]
[1761076805121,0.0736,4006.5,4006.4,2.94910638]
[1761076805464,0.0736,4006.5,4006.4,8.19362605]
[1761076806120,0.46492923,4006.5,4006.4,8.19362605]
[1761076806561,0.46492923,4006.5,4006.4,4.7]
[1761076806728,0.0736,4006.5,4006.4,4.7]
[1761076807547,3.3236,4006.5,4006.4,7.64910638]
[1761076807758,0.0736,4006.5,4006.4,7.64910638]
[1761076807970,3.3236,4006.5,4006.4,7.64910638]
[1761076808317,0.0736,4006.5,4006.4,7.64910638]
[1761076808521,3.3236,4006.5,4006.4,8.66362882]
[1761076808839,3.3236,4006.5,4006.4,7.19600638]
[1761076809615,3.3236,4006.5,4006.4,7.64910638]
[1761076809779,0.0736,4006.5,4006.4,7.64910638]
[1761076810609,3.248,4007.5,4007.3,2.49539255]
[1761076810784,2.813,4007.3,4006.4,0.4531]
[1761076811112,1.5552,4008.1,4006.5,0.31695603]
[1761076811113,3.248,4007.2,4006.5,0.31695603]
[1761076811413,0.50688,4008.2,4007.6,2.49520452]
[1761076811414,10.158579,4008.2,4007.6,2.49520452]
[1761076811589,1.5552,4007.9,4007.6,2.49520452]
[1761076811784,2.06225,4007.9,4007.7,2.49519313]
[1761076812104,0.1612,4008.5,4007.7,4.7]
[1761076812307,1.5552,4008.3,4007.7,4.7]
[1761076812513,0.1588,4007.8,4006.9,2.49569492]
[1761076812724,4.14499,4007.6,4006.9,2.4956416]
[1761076813040,4.14499,4007.6,4007.0,7.19562655]
[1761076813246,4.14499,4007.6,4007.0,4.7]
[1761076813544,3.248,4007.7,4007.0,4.7]
[1761076813746,3.0724,4007.6,4007.1,2.4955538]
[1761076813954,3.0724,4007.6,4007.2,2.4954884]
[1761076814301,3.101397,4007.6,4007.1,2.49557036]
[1761076814505,3.101397,4007.6,4007.2,2.49546737]
[1761076814803,3.101397,4007.6,4007.3,2.49544106]
[1761076815147,3.248,4007.7,4007.3,2.49544106]
[1761076815305,3.248,4007.7,4007.0,4.7]
[1761076815633,3.248,4007.7,4007.0,7.19563189]
[1761076815838,3.248,4007.7,4007.3,2.49542815]
[1761076816040,3.248,4007.7,4007.4,2.49537653]
[1761076816436,4.695154,4008.4,4007.5,0.4531]
[1761076816653,3.245,4008.4,4008.3,2.71522324]
[1761076817005,4.8002,4008.4,4008.3,2.71522324]
[1761076817241,4.8002,4008.4,4008.3,2.49482324]
[1761076818563,4.8002,4008.4,4008.3,0.0054]
[1761076819268,4.8002,4008.4,4008.3,2.50022324]
[1761076819621,4.8002,4008.4,4008.3,0.0054]
[1761076819831,4.8002,4008.4,4008.3,2.50022324]
[1761076820040,1.5552,4008.4,4008.3,2.50022324]
[1761076820320,0.001,4009.1,4008.3,2.50022324]
[1761076820321,0.001,4009.1,4008.5,2.49469876]
[1761076820540,2.189,4008.6,4008.5,2.92739876]
[1761076820851,2.2886,4008.6,4008.3,0.0054]
[1761076821149,2.16168,4008.5,4008.3,0.0054]
[1761076821516,35.34827285,4008.4,4008.3,0.0054]
[1761076821716,10.918113,4008.4,4008.3,0.0054]
[1761076821928,12.969048,4008.4,4008.3,0.0054]
[1761076822347,10.832476,4008.4,4008.3,0.0054]
[1761076822735,35.40768,4008.4,4008.3,0.0054]
[1761076822938,20.666096,4008.4,4008.3,0.0054]
[1761076823254,12.821125,4008.4,4008.3,0.0054]
[1761076823551,7.496505,4008.4,4008.3,0.0054]
[1761076823757,17.067476,4008.4,4008.3,0.0054]
[1761076824118,8.101647,4008.4,4008.3,0.0054]
[1761076824331,4.855647,4008.4,4008.3,0.0054]
[1761076824819,5.30708,4008.4,4008.3,0.0054]
[1761076826519,2.06208,4008.4,4008.3,0.0054]
[1761076826739,5.30508,4008.4,4008.3,0.0054]
[1761076827148,14.691254,4008.4,4008.3,0.0054]
[1761076827447,11.256939,4008.4,4008.3,0.0054]
[1761076827626,7.638822,4008.4,4008.3,0.0054]
[1761076827834,10.212952,4008.4,4008.3,0.0054]
[1761076828058,11.940592,4008.4,4008.3,0.0054]
[1761076828232,9.49092,4008.4,4008.3,0.0054]
[1761076828430,8.980708,4008.4,4008.3,0.0054]
[1761076828636,5.30508,4008.4,4008.3,0.0054]
[1761076829020,2.06208,4008.4,4008.3,0.0054]
[1761076829326,5.30508,4008.4,4008.3,0.0054]
[1761076829819,5.40468,4008.4,4008.3,0.0054]
[1761076830635,5.30508,4008.4,4008.3,0.0054]
[1761076830844,5.40468,4008.4,4008.3,0.0054]
[1761076831555,23.308224,4008.4,4008.3,0.0054]
[1761076832220,23.106975,4008.4,4008.3,0.0054]
[1761076832428,20.218392,4008.4,4008.3,0.0054]
[1761076832726,5.30508,4008.4,4008.3,0.0054]
[1761076833346,5.83687229,4008.4,4008.3,0.0054]
[1761076833656,5.93647229,4008.4,4008.3,0.0054]
[1761076835334,5.83687229,4008.4,4008.3,0.0054]
[1761076836039,29.43030847,4008.4,4008.3,0.0054]
[1761076836354,27.82336847,4008.4,4008.3,0.0054]
[1761076836550,20.41783447,4008.4,4008.3,0.0054]
[1761076836729,20.51743447,4008.4,4008.3,0.0054]
[1761076837126,20.71610147,4008.4,4008.3,0.0054]
[1761076837326,20.21544247,4008.4,4008.3,0.0054]
[1761076837730,22.05303029,4008.4,4008.3,0.0054]
[1761076838023,32.15994092,4008.4,4008.3,0.0054]
[1761076838338,31.27652529,4008.4,4008.3,0.0054]
[1761076838539,24.85534529,4008.4,4008.3,0.0054]
[1761076838735,14.96742629,4008.4,4008.3,0.0054]
[1761076839130,17.11260529,4008.4,4008.3,0.0054]
[1761076839328,2.97558111,4008.4,4008.3,0.0054]
[1761076839665,5.82887229,4008.4,4008.3,0.0054]
[1761076839834,5.32299229,4008.4,4008.3,0.0054]
[1761076840033,5.82987229,4008.4,4008.3,0.0054]
[1761076840235,2.08699229,4008.4,4008.3,2.97482324]
[1761076840434,5.32199229,4008.4,4008.3,2.97482324]
[1761076841173,5.32199229,4008.4,4008.3,0.0054]
[1761076841861,38.57296614,4008.4,4008.3,0.0054]
[1761076842064,36.23953349,4008.4,4008.3,0.0054]
[1761076842230,35.87999614,4008.4,4008.3,0.0054]
[1761076842630,37.5710401,4008.4,4008.3,0.0054]
[1761076842861,33.08859625,4008.4,4008.3,0.0054]
[1761076843082,31.75708964,4008.4,4008.3,0.0054]
[1761076843269,33.08884203,4008.4,4008.3,0.0054]
[1761076843771,32.81332803,4008.4,4008.3,0.0054]
[1761076843935,32.99720103,4008.4,4008.3,0.0054]
[1761076844132,31.66544864,4008.4,4008.3,0.0054]
[1761076844332,2.06208,4007.7,4006.8,0.4746]
[1761076844533,0.50688,4007.5,4006.8,0.4746]
[1761076844760,1.03867229,4007.5,4006.9,2.49564697]
[1761076845163,1.03867229,4007.5,4006.5,0.002]
[1761076845369,1.03867229,4007.5,4006.9,2.49568511]
[1761076845575,1.03867229,4007.5,4006.7,2.49577292]
[1761076846034,1.03867229,4007.5,4006.7,2.97037292]
[1761076846998,1.03867229,4007.5,4006.7,0.4746]
[1761076847200,2.59387229,4007.5,4006.5,0.002]
[1761076847498,0.50688,4007.3,4006.7,2.49580527]
[1761076847801,2.06208,4007.1,4006.8,2.49571581]
[1761076848168,2.06208,4007.1,4006.8,2.97031581]
[1761076848689,2.06208,4007.1,4006.9,2.49568344]
[1761076848895,2.06208,4007.1,4006.9,0.4746]
[1761076849694,2.06208,4007.1,4006.8,2.49574163]
[1761076850499,0.66580312,4007.7,4006.9,0.4746]
[1761076850670,2.06208,4007.5,4007.1,2.49550893]
[1761076850870,0.53222615,4007.4,4007.1,2.49550893]
[1761076851103,0.53222615,4007.4,4006.5,4.702]
[1761076851297,1.5552,4007.2,4006.6,0.4746]
[1761076851476,1.5552,4007.2,4006.7,2.49577009]
[1761076851682,2.06208,4007.2,4006.5,0.002]
[1761076851881,0.53230009,4007.1,4006.5,0.002]
[1761076852084,3.23,4007.0,4006.5,0.002]
[1761076852270,3.23,4006.9,4006.7,2.49578044]
[1761076852594,3.23,4006.8,4006.7,2.49578044]
[1761076853365,3.23,4006.8,4006.5,2.4978939]
[1761076853579,3.23,4006.8,4006.7,2.4958195]
[1761076854017,3.23,4006.8,4006.7,2.9625195]
[1761076855169,3.23,4006.8,4006.7,2.4958195]
[1761076855593,3.23,4006.8,4006.5,0.002]
[1761076855982,3.23,4006.8,4006.7,2.4958195]
[1761076857187,3.23,4006.8,4006.7,2.9625195]
[1761076857500,2.47950312,4007.8,4006.7,0.4667]
[1761076857501,0.2585,4007.8,4006.7,0.4667]
[1761076857703,0.50688,4007.5,4007.1,2.49556817]
[1761076857902,0.50688,4007.5,4006.7,0.4667]
[1761076858501,0.50688,4007.4,4006.7,2.4958195]
[1761076858702,0.50688,4007.2,4006.7,2.4958195]
[1761076858884,0.50688,4007.2,4006.9,2.495657]
[1761076859206,2.06208,4007.2,4006.9,2.495657]
[1761076860302,1.5552,4007.0,4006.6,0.002]
[1761076860475,5.682255,4006.7,4006.6,0.002]
[1761076860805,7.76932743,4006.7,4006.6,0.002]
[1761076861299,7.76932743,4006.7,4006.5,0.002]
[1761076861300,2.06208,4006.6,4006.5,0.002]
[1761076861504,0.50688,4005.3,4004.5,0.4667]
[1761076861708,10.331514,4005.1,4003.1,4.7]
[1761076861912,10.331514,4005.1,4004.0,0.4667]
[1761076861913,2.06208,4004.6,4004.0,0.4667]
[1761076862114,2.06208,4004.6,4002.7,2.49830376]
[1761076862115,0.50688,4004.2,4003.3,0.4667]
[1761076862418,3.226,4004.5,4002.7,0.4667]
[1761076862419,2.06208,4003.8,4002.7,0.4667]
[1761076862710,0.50688,4003.6,4002.9,2.49817584]
[1761076862900,0.50688,4003.6,4003.5,0.2158]
[1761076863107,0.50688,4003.6,4002.7,0.4667]
[1761076863284,0.50688,4003.4,4002.7,0.4667]
[1761076863694,2.49709971,4004.7,4002.7,0.4667]
[1761076863695,0.1569,4005.0,4003.3,0.2158]
[1761076863894,2.06208,4004.8,4003.4,0.02497876]
[1761076864093,0.50688,4004.6,4003.5,0.27387032]
[1761076864300,0.50688,4004.6,4003.4,0.4667]
[1761076864301,0.50688,4004.4,4003.4,0.4667]
[1761076864501,0.50688,4004.2,4003.4,2.96456825]
[1761076864712,0.50688,4004.2,4003.4,0.4667]
[1761076865405,0.50688,4004.2,4003.4,2.96456299]
[1761076865624,0.50688,4004.2,4003.4,0.4667]
[1761076865801,0.50688,4004.2,4003.4,2.96452222]
[1761076866017,0.50688,4004.2,4003.3,0.2158]
[1761076866620,0.50688,4004.2,4002.6,0.4667]
[1761076866621,14.049397,4003.9,4002.6,0.4667]
[1761076866821,14.049397,4003.9,4002.3,2.4985466]
[1761076866822,2.06208,4003.4,4002.3,0.4667]
[1761076867119,0.50688,4003.1,4002.4,2.49845247]
[1761076867329,0.50688,4002.8,4002.0,0.2158]
[1761076867487,0.50688,4002.6,4002.3,2.49850604]
[1761076867688,3.235,4002.5,4002.3,2.4985425]
[1761076867989,3.235,4002.5,4002.3,0.4667]
[1761076868210,3.235,4002.5,4002.0,0.2158]
[1761076868820,2.06208,4002.4,4001.7,0.4667]
[1761076869123,0.50688,4002.1,4000.5,2.4996417]
[1761076869310,2.06208,4002.4,4000.5,2.4996417]
[1761076869311,0.50688,4001.9,4001.3,2.49913159]
[1761076869497,0.50688,4001.9,4001.3,2.49917565]
[1761076869697,0.50688,4001.9,4001.6,2.49898905]
[1761076869896,0.50688,4001.9,4001.4,0.4667]
[1761076870099,0.50688,4001.9,4001.2,0.2158]
[1761076870100,2.22178,4001.9,4001.2,0.2158]
[1761076870298,0.66658,4001.9,4001.2,0.2158]
[1761076870614,0.50688,4001.7,4001.5,2.49901305]
[1761076870815,3.74288,4001.6,4001.5,2.49901305]
[1761076870985,2.06208,4002.3,4001.5,2.49902441]
[1761076871184,2.06208,4002.3,4000.6,0.4667]
[1761076871185,0.50688,4001.9,4000.6,0.4667]
[1761076871420,0.50688,4001.5,4000.6,0.2158]
[1761076871626,2.06208,4001.3,4000.6,0.2158]
[1761076871929,24.15093,4001.2,3998.9,4.7]
[1761076872114,24.15093,4001.2,3996.8,0.2158]
[1761076872115,2.06208,4000.4,3999.0,2.71639486]
[1761076872325,2.06208,4000.4,3997.9,2.50126895]
[1761076872326,2.06208,4000.4,3998.1,0.4667]
[1761076872327,34.5620175,4000.1,3998.1,0.4667]
[1761076872642,34.5620175,4000.1,3998.6,2.50086346]
[1761076872643,17.903762,4000.1,3998.6,2.50086346]
[1761076872807,18.410642,4000.1,3998.6,0.4667]
[1761076872994,18.410642,4000.1,3999.3,0.2158]
[1761076872995,7.606449,4000.1,3999.3,0.2158]
[1761076873530,3.247,4000.1,4000.0,8.7167]
[1761076873730,3.247,4000.1,4000.0,8.25]
[1761076873897,4.8022,4000.1,4000.0,8.25]
[1761076874229,5.30908,4000.1,4000.0,7.5]
[1761076874411,22.576526,4000.1,4000.0,7.5]
[1761076874615,25.41350085,4000.1,4000.0,7.5]
[1761076874807,25.80558746,4000.1,4000.0,7.5]
[1761076875328,1.89223735,4000.0,3998.1,0.2158]
[1761076875637,2.06208,3999.6,3998.2,2.5011255]
[1761076875925,3.253,3999.9,3998.5,2.50093256]
[1761076875926,0.50688,3999.0,3998.5,2.50093256]
[1761076876094,1.5552,3998.8,3998.3,0.4667]
[1761076876302,1.5552,3998.6,3998.3,0.4667]
[1761076876646,3.255,3998.5,3998.1,0.2158]
[1761076876807,3.255,3998.4,3998.1,2.71696921]
[1761076877032,3.256,3998.3,3998.1,0.2158]
[1761076877246,3.256,3998.2,3998.1,0.2158]
[1761076877750,3.256,3998.2,3998.1,3.18368806]
[1761076878053,3.256,3998.2,3997.3,0.4667]
[1761076878054,1.5552,3998.1,3997.3,0.4667]
[1761076878252,0.50688,3998.0,3997.3,0.4667]
[1761076878453,0.50688,3998.0,3997.4,2.50156889]
[1761076878670,0.50688,3998.0,3997.3,2.96837436]
[1761076879265,2.06208,3997.8,3996.4,0.6662]
[1761076879425,0.50688,3997.5,3996.5,0.02502189]
[1761076879631,0.50688,3997.5,3997.0,2.50186171]
[1761076879632,1.5552,3997.3,3997.0,2.50186171]
[1761076879973,0.50688,3998.2,3997.5,2.50154671]
[1761076880276,1.5552,3998.0,3997.5,2.50156347]
[1761076880476,0.39222153,3999.3,3998.2,0.2206]
[1761076880700,7.085485,3999.1,3998.2,0.6662]
[1761076880960,1.5552,3999.0,3998.2,3.16732317]
[1761076881124,3.259,3999.1,3998.5,2.50093178]
[1761076881327,1.5552,3999.0,3998.5,2.50093178]
[1761076881529,3.259,3999.1,3998.6,2.50084827]
[1761076881731,3.259,3999.1,3998.5,2.50093657]
[1761076881951,0.50688,3998.9,3998.3,2.94660997]
[1761076882158,0.50688,3998.9,3998.3,0.4456]
[1761076882358,30.0,3999.7,3998.4,0.47061]
[1761076882667,3.261,3999.6,3998.4,0.47061]
[1761076882833,2.112993,4000.4,3999.5,2.50026304]
[1761076883162,0.2553,4000.9,3998.4,0.47061]
[1761076883163,3.26,4000.3,3998.4,0.47061]
[1761076883341,3.26,4000.3,3998.5,0.31922558]
[1761076883543,3.26,4000.3,3998.4,0.47061]
[1761076883544,20.160815,4000.1,3998.4,0.4456]
[1761076883732,2.289,3999.9,3998.9,2.50067434]
[1761076883939,1.5552,3999.7,3998.9,2.50067434]
[1761076884153,1.5552,3999.7,3998.6,0.4582]
[1761076884154,0.50688,3999.6,3998.6,0.4582]
[1761076884432,1.5552,3999.7,3998.7,0.02500812]
[1761076884763,1.5552,3999.7,3998.6,0.4582]
[1761076884764,3.261,3999.6,3998.6,0.4582]
[1761076885062,3.261,3999.5,3999.3,2.50043091]
[1761076885236,1.5552,3999.4,3999.3,2.50043091]
[1761076885639,1.5552,3999.4,3999.0,2.50062152]
[1761076885842,1.5552,3999.4,3999.0,2.95882152]
[1761076886135,1.5552,3999.4,3999.1,2.9587443]
[1761076886360,1.5552,3999.4,3999.3,2.50043757]
[1761076886767,0.50688,4000.3,3999.5,2.50029004]
[1761076886937,2.06208,4000.1,3999.6,2.50024503]
[1761076887137,2.06208,4000.1,3998.7,0.2959129]
[1761076887138,0.33703735,4001.1,3999.4,0.48320375]
[1761076887481,1.5552,4000.8,3999.5,0.2245]
[1761076887646,4.761928,4000.7,3999.5,0.2245]
[1761076887833,3.3635,4001.0,4000.1,2.4999271]
[1761076888035,2.06208,4000.8,4000.0,2.49999353]
[1761076888263,0.50688,4000.6,4000.0,2.49999353]
[1761076888575,3.261,4000.5,4000.1,0.02499937]
[1761076888871,1.5552,4000.4,4000.0,2.49999958]
[1761076889068,0.1575,4001.3,4000.0,1.00403371]
[1761076889276,0.533,4001.2,4000.5,2.4996696]
[1761076889566,0.533,4001.2,4000.3,2.49979378]
[1761076889989,0.50688,4001.1,4000.4,2.49975002]
[1761076890473,1.5552,4000.9,4000.8,2.49949927]
[1761076890647,3.259,4001.0,4000.9,2.49943762]
[1761076890847,3.26,4001.2,4000.9,0.49989564]
[1761076891063,3.26,4001.2,4001.1,2.49931268]
[1761076891466,2.243325,4002.1,4001.1,0.4582]
[1761076891648,0.1579,4002.6,4001.7,2.49889477]
[1761076891649,3.021787,4002.5,4001.7,2.49889477]
[1761076891982,3.021787,4002.5,4001.2,0.4831925]
[1761076891983,1.5552,4002.2,4001.8,2.49887549]
[1761076892157,5.0,4002.5,4001.6,2.49896818]
[1761076892344,3.259,4002.1,4001.8,2.49885533]
[1761076892555,3.259,4002.1,4001.7,0.4582]
[1761076892761,3.259,4002.1,3999.6,1.5552]
[1761076892762,0.50688,4001.9,4000.9,0.4582]
[1761076893069,0.50688,4001.9,4000.9,2.95761673]